{"text_format":"1","workbook":"xlsx","n_sheets":1,"sheets":["Arkusz1"],"not_rendered":{"charts":0,"images":0,"macros":1,"external_links":0,"defined_names":0,"comments":0,"pivot_tables":0},"unopened":[],"bounds":{"document_bytes":16777216,"sheet_cells":100000,"rows_first":2000,"rows_last":500,"rows_between":2000,"halvings":0,"cell_chars":16384,"cell_head_chars":4096},"cells_cut":0,"cells_raw":0,"read":"whole","date_system":"1900"}

{"sheet":"Arkusz1","index":0,"n_rows":28,"n_cols":45,"rows_kept":28,"cut":false,"hidden":false,"merged":[[1,28,1,30],[1,32,1,34],[1,36,1,38],[1,40,1,42],[1,2,1,4],[1,6,1,8],[1,10,1,12],[1,14,1,16],[1,18,1,20],[1,24,1,26]]}
[]
[null,"zapotrzebowanie","2016-10-10",null,null,"total","2016-10-11",null,null,"total","2016-10-12",null,null,"total","2016-10-13",null,null,"total","2016-10-14",null,null,"total","razem","zapotrzebowanie","2016-10-17",null,null,"total","2016-10-18",null,null,"total","2016-10-19",null,null,"total","2016-10-20",null,null,"total","2016-10-21",null,null,"total","razem"]
["box",42,1,2,3,null,1,2,3,null,1,2,3,null,1,2,3,null,1,2,3,null,null,{"$f":"B3+1","v":43},1,2,3,null,1,2,3,null,1,2,3,null,1,2,3,null,1,2,3]
[50,3250,250,250,250,{"$f":"SUM(C4:E4)","v":750},250,250,200,{"$f":"SUM(G4:I4)","v":700},200,200,200,{"$f":"SUM(K4:M4)","v":600},200,200,200,{"$f":"SUM(O4:Q4)","v":600},200,200,200,{"$f":"SUM(S4:U4)","v":600},{"$f":"(F4+J4+N4+R4+V4)","v":3250},4250,null,null,null,{"$f":"SUM(Y4:AA4)","v":0},null,null,null,{"$f":"SUM(AC4:AE4)","v":0},null,null,null,{"$f":"SUM(AG4:AI4)","v":0},null,null,null,{"$f":"SUM(AK4:AM4)","v":0},null,null,null,{"$f":"SUM(AO4:AQ4)","v":0},{"$f":"(AB4+AF4+AJ4+AN4+AR4)","v":0}]
[56,392,null,null,null,0,null,null,null,0,null,null,null,0,null,null,null,0,null,null,null,0,0,3920,null,null,null,0,null,null,null,0,null,null,null,0,null,null,null,0,null,null,null,0,0]
[35,1400,null,null,null,0,null,null,null,0,null,null,null,0,null,null,null,0,null,null,null,0,0,1575,105,105,105,315,105,105,105,315,105,105,105,315,105,105,105,315,105,105,105,315,1575]
[56,2520,null,null,null,0,null,null,null,0,null,null,null,0,null,null,null,0,null,null,null,0,0,3360,null,null,null,0,null,null,null,0,null,null,null,0,null,null,null,0,null,null,null,0,0]
[40,680,80,80,40,200,40,40,40,120,40,40,40,120,40,40,40,120,40,40,40,120,680,1600,null,null,null,0,null,null,null,0,null,null,null,0,null,null,null,0,null,null,null,0,0]
[]
[]
[]
[]
[]
[]
[]
[]
[]
[]
[]
[]
[null,null,null,null,"Makro rozpisuje plan pracy na 15 dni - 5 dni po 3 zmiany (komórki żółte)."]
[]
[null,null,null,null,"Dane do rozpisania znajdują się w komórkach zielonych. To Liczba sztuk towaru do spakowania w palety."]
[null,null,null,null,"W komórkach niebieskich są informacje jak należy pakować towar (po ile sztuk w palecie)."]
[]
[null,null,null,null,"UWAGA: zakładamy, że komórki zielone są wielokrotnością niebieskich."]
[]
[null,null,null,null,"Przed uruchomieniem makra należy aktywować jedną z zielonych komórek."]